Workbook

Sheet Questions 1 et 2
A1: Matrice de production
B2: Machine M1 | C2: Machine M2 | D2: Machine M3 | E2: Machine M4 | F2: Prix de vente | G2: Production | H2: CA
A3: Produit P1 | B3: 1 | C3: 6 | D3: 5 | E3: 2 | F3: =81-G3*0.05 -> 81 | G3: 0 | H3: =G3*F3 -> 0
A4: Produit P2 | B4: 1 | C4: 8 | D4: 3 | E4: 1 | F4: =90-G4*0.1 -> 87.5 | G4: 25 | H4: =G4*F4 -> 2187.5
A5: Produit P3 | B5: 1 | C5: 0 | D5: 1 | E5: 1 | F5: =85-G5*0.1 -> 77.5 | G5: 75 | H5: =G5*F5 -> 5812.5
A6: Utilisation des machines | B6: =$G$3*B$3+$G$4*B$4+$G$5*B$5 -> 100 | C6: =$G$3*C$3+$G$4*C$4+$G$5*C$5 -> 200 | D6: =$G$3*D$3+$G$4*D$4+$G$5*D$5 -> 150 | E6: =SUMPRODUCT(E3:E5,G3:G5) -> 100 | G6: Total CA | H6: =SUM(H3:H5) -> 8000
A7: Capacités | B7: 100 | C7: 450 | D7: 150 | E7: 200

Sheet Question 3
A1: Matrice de production
B2: Machine M1 | C2: Machine M2 | D2: Machine M3 | E2: Machine M4 | F2: Prix de vente | G2: Production | H2: CA
A3: Produit P1 | B3: 1 | C3: 6 | D3: 5 | E3: 2 | F3: =81-G3*0.05 -> 81 | G3: 0 | H3: =G3*F3 -> 0
A4: Produit P2 | B4: 1 | C4: 8 | D4: 3 | E4: 1 | F4: =90-G4*0.1 -> 90 | G4: 0 | H4: =G4*F4 -> 0
A5: Produit P3 | B5: 1 | C5: 0 | D5: 1 | E5: 1 | F5: =85-G5*0.1 -> 75 | G5: 100 | H5: =G5*F5 -> 7500
A6: Utilisation des machines | B6: =$G$3*B$3+$G$4*B$4+$G$5*B$5 -> 100 | C6: =$G$3*C$3+$G$4*C$4+$G$5*C$5 -> 0 | D6: =$G$3*D$3+$G$4*D$4+$G$5*D$5 -> 100 | E6: =SUMPRODUCT(E3:E5,G3:G5) -> 100 | G6: Total CA | H6: =SUM(H3:H5) -> 7500
A7: Capacités | B7: 100 | C7: 450 | D7: 150 | E7: 200
A8: Coût horaire d'utilisation | B8: 10 | C8: 5 | D8: - | E8: 6 | F8: Total Cout
A9: Coût d'utilisation | B9: =B8*B6 -> 1000 | C9: =C8*C6 -> 0 | D9: =MonCoutM3(D6) -> 550 | E9: =E8*E6 -> 600 | F9: =SUM(B9:E9) -> 2150
G12: Bénéfice | H12: =H6-F9 -> 5350

Sheet Question 4
A1: Matrice de production | K1: M1 | L1: M2 | M1: M4 | N1: Bénéfice
B2: Machine M1 | C2: Machine M2 | D2: Machine M3 | E2: Machine M4 | F2: Prix de vente | G2: Production | H2: CA | K2: 7 | L2: 4 | M2: 2 | N2: 1920
A3: Produit P1 | B3: 1 | C3: 6 | D3: 5 | E3: 2 | F3: =81-G3*0.05 -> 81 | G3: 0 | H3: =G3*F3 -> 0 | K3: 7 | L3: 4 | M3: 4 | N3: 1800
A4: Produit P2 | B4: 1 | C4: 8 | D4: 3 | E4: 1 | F4: =90-G4*0.1 -> 85.5 | G4: 45 | H4: =G4*F4 -> 3847.5 | K4: 7 | L4: 4 | M4: 6 | N4: 1680
A5: Produit P3 | B5: 1 | C5: 0 | D5: 1 | E5: 1 | F5: =85-G5*0.1 -> 83.5 | G5: 15 | H5: =G5*F5 -> 1252.5 | K5: 7 | L5: 4 | M5: 7 | N5: 1620
A6: Utilisation des machines | B6: =$G$3*B$3+$G$4*B$4+$G$5*B$5 -> 60 | C6: =$G$3*C$3+$G$4*C$4+$G$5*C$5 -> 360 | D6: =$G$3*D$3+$G$4*D$4+$G$5*D$5 -> 150 | E6: =SUMPRODUCT(E3:E5,G3:G5) -> 60 | G6: Total CA | H6: =SUM(H3:H5) -> 5100 | K6: 7 | L6: 6 | M6: 2 | N6: 1200
A7: Capacités | B7: 100 | C7: 450 | D7: 150 | E7: 200 | K7: 7 | L7: 6 | M7: 4 | N7: 1080
A8: Coût horaire d'utilisation | B8: 7 | C8: 4 | D8: - | E8: 4 | F8: Total Cout | K8: 7 | L8: 6 | M8: 6 | N8: 960
A9: Coût d'utilisation | B9: =B8*B6 -> 420 | C9: =C8*C6 -> 1440 | D9: =MonCoutM3(D6) -> 1200 | E9: =E8*E6 -> 240 | F9: =SUM(B9:E9) -> 3300 | K9: 7 | L9: 6 | M9: 7 | N9: 900
K10: 7 | L10: 7 | M10: 2 | N10: 840
K11: 7 | L11: 7 | M11: 4 | N11: 720
G12: Bénéfice | H12: =H6-F9 -> 1800 | K12: 7 | L12: 7 | M12: 6 | N12: 600
K13: 7 | L13: 7 | M13: 7 | N13: 540
K14: 11 | L14: 4 | M14: 2 | N14: 1680
K15: 11 | L15: 4 | M15: 4 | N15: 1560
K16: 11 | L16: 4 | M16: 6 | N16: 1440
K17: 11 | L17: 4 | M17: 7 | N17: 1380
K18: 11 | L18: 6 | M18: 2 | N18: 960
K19: 11 | L19: 6 | M19: 4 | N19: 840
K20: 11 | L20: 6 | M20: 6 | N20: 720
K21: 11 | L21: 6 | M21: 7 | N21: 660
K22: 11 | L22: 7 | M22: 2 | N22: 600
K23: 11 | L23: 7 | M23: 4 | N23: 480
K24: 11 | L24: 7 | M24: 6 | N24: 360
K25: 11 | L25: 7 | M25: 7 | N25: 300
K26: 13 | L26: 4 | M26: 2 | N26: 1560
K27: 13 | L27: 4 | M27: 4 | N27: 1440
K28: 13 | L28: 4 | M28: 6 | N28: 1320
K29: 13 | L29: 4 | M29: 7 | N29: 1260
K30: 13 | L30: 6 | M30: 2 | N30: 840
K31: 13 | L31: 6 | M31: 4 | N31: 720
K32: 13 | L32: 6 | M32: 6 | N32: 600
K33: 13 | L33: 6 | M33: 7 | N33: 540
K34: 13 | L34: 7 | M34: 2 | N34: 480
K35: 13 | L35: 7 | M35: 4 | N35: 360
K36: 13 | L36: 7 | M36: 6 | N36: 240
K37: 13 | L37: 7 | M37: 7 | N37: 180
K38: 18 | L38: 4 | M38: 2 | N38: 1260
K39: 18 | L39: 4 | M39: 4 | N39: 1140
K40: 18 | L40: 4 | M40: 6 | N40: 1020
K41: 18 | L41: 4 | M41: 7 | N41: 960
K42: 18 | L42: 6 | M42: 2 | N42: 540
K43: 18 | L43: 6 | M43: 4 | N43: 420
K44: 18 | L44: 6 | M44: 6 | N44: 300
K45: 18 | L45: 6 | M45: 7 | N45: 240
K46: 18 | L46: 7 | M46: 2 | N46: 180
K47: 18 | L47: 7 | M47: 4 | N47: 60
K48: 18 | L48: 7 | M48: 6 | N48: -60
K49: 18 | L49: 7 | M49: 7 | N49: -120
